[Event "LV Capablanca Memorial Elite 2022"]
[Site "La Habana"]
[Date "2022.04.20"]
[Round "2.1"]
[White "Yilmaz, Mustafa"]
[Black "Quesada Perez, Luis Ernesto"]
[Result "1/2-1/2"]
[ECO "A30"]
[WhiteElo "2627"]
[BlackElo "2517"]
[Annotator "TA"]
[PlyCount "135"]
[EventDate "2022.04.20"]
[EventType "tourn"]
[EventCountry "CUB"]
[SourceTitle "playchess.com"]
[Source "ChessBase"]
[SourceQuality "1"]
[TimeControl "40/5400+30:1800+30"]

{[%evp 24,135,64,42,60,47,54,58,53,45,61,50,50,46,63,41,52,43,66,39,45,30,42,33,49,32,50,0,0,0,20,23,62,69,60,65,68,34,29,19,36,36,40,40,39,37,40,39,36,29,33,33,31,42,37,38,28,6,9,0,0,0,0,-36,-34,-34,-34,-33,-39,-40,-40,-38,-33,-40,-40,-46,-40,-37,-8,-8,-14,-10,-14,-81,-75,-122,-154,-139,-5,-5,-5,-5,-5,-5,-5,-5,-5,-5,-5,-5,-5,-5,-5,-5,0,0,0,0,0,-5,0,-5,-5,-5]} 1. c4 {[%emt 0:00:04]} Nf6 {[%emt 0:02:15]} 2. Nf3 {[%emt 0:00:46]} e6 {[%emt 0:00:32]} 3. g3 {[%emt 0:00:33]} b6 {[%emt 0:02:15]} 4. Bg2 {[%emt 0:00:32]} Bb7 {[%emt 0:00:06]} 5. O-O {[%emt 0:00:38]} c5 {[%emt 0:05:12]} 6. Nc3 {[%emt 0:02:28]} Be7 {[%emt 0:02:56]} 7. d4 {[%emt 0:00:44]} cxd4 {[%emt 0:00:09]} 8. Qxd4 {[%emt 0:00:15]} d6 {[%emt 0:01:57]} 9. Rd1 {[%emt 0:02:13]} a6 {[%emt 0:05:48]} 10. Bg5 {[%emt 0:02:45]} Nbd7 {[%emt 0:01:55]} 11. Qd2 {[%emt 0:00:24]} O-O {[%emt 0:02:13]} 12. Bf4 {[%emt 0:00:56]} Ne8 {[%emt 0:00:18]} 13. Rac1 {[%emt 0:01:21] &Bianco is more active.} Qc7 {[%emt 0:23:47] is the legacy move (13...Rc8). A30: Symmetrical English: Double Fianchetto and Hedgehog.} 14. Qe3 {[%emt 0:02:58][%cal Oc3d5] [#] is the legacy move (14.b3).} Qc5 $5 $146 {[%emt 0:16:06][%mdl 8] An interesting novelty.} ({Predecessor:} 14... Nef6 15. Nd5 exd5 16. Qxe7 Rfe8 17. Qxd6 Qxd6 18. Bxd6 Rxe2 19. cxd5 Bxd5 20. Rxd5 Nxd5 {1-0 (45) Iturrizaga Bonelli,E (2641)-Hjartarson,J (2529) Berlin 2015}) 15. Qxc5 {[%emt 0:18:40]} bxc5 {[%emt 0:01:38] White is slightly better.} 16. b3 {[%emt 0:03:12][%cal Of3e5]} Nb6 {[%emt 0:03:20]} 17. g4 {[%emt 0:08:13]} f6 {[%emt 0:05:16]} 18. Bg3 {[%emt 0:05:13]} Rd8 {[%emt 0:02:21]} 19. Rd2 {[%emt 0:05:38]} g6 {[%emt 0:08:12]} 20. Rcd1 {[%emt 0:03:05]} f5 {[%emt 0:02:31]} 21. gxf5 {[%emt 0:02:29]} gxf5 {[%emt 0:00:06]} 22. e3 {[%emt 0:03:11]} Ba8 {[%emt 0:00:40]} 23. Ne1 {[%emt 0:06:45]} Bf6 {[%emt 0:05:45]} 24. Rd3 {[%emt 0:05:27]} e5 {[%emt 0:02:10][%cal Of5f4]} 25. Nd5 {[%emt 0:02:33] Against f4} (25. f3 $14) 25... Nxd5 $11 {[%emt 0:00:04]} 26. Bxd5+ {[%emt 0:00:05]} Bxd5 {[%emt 0:00:13]} 27. Rxd5 {[%emt 0:00:06][%cal Og3e5]} Rc8 {[%emt 0:00:28]} 28. f4 {[%emt 0:04:41]} exf4 {[%emt 0:00:02]} 29. Bxf4 {[%emt 0:00:26]} Be7 {[%emt 0:00:04]} 30. Ng2 {[%emt 0:05:27]} (30. Kg2 {seems wilder.} a5 31. Kf3 a4 32. Nd3) 30... a5 {[%emt 0:01:08]} 31. R5d3 {[%emt 0:05:23]} a4 {[%emt 0:01:23]} 32. bxa4 {[%emt 0:00:42]} Ra8 {[%emt 0:00:05]} 33. Ra3 {[%emt 0:00:07]} Ra6 {[%emt 0:00:05]} 34. Rb1 {[%emt 0:02:02]} Nf6 {[%emt 0:05:58]} 35. Rb7 {[%emt 0:01:03]} Bd8 {[%emt 0:00:05]} 36. Bh6 {[%emt 0:00:21]} Rf7 {[%emt 0:00:05]} 37. Rb8 {[%emt 0:03:36]} Rd7 {[%emt 0:00:01]} 38. Bg5 {[%emt 0:03:00] [#] And now Bxf6 would win.} Kf7 {[%emt 0:00:04]} 39. Nf4 {[%emt 0:00:21][%cal Oa4a5]} Be7 {[%emt 0:01:36]} 40. a5 {[%emt 0:00:00]} (40. Bxf6 $5 Bxf6 41. a5 $11) 40... Rda7 {[%emt 0:00:00]} 41. Rb5 {[%emt 0:05:52]} Ng4 {[%emt 0:13:23]} 42. Bxe7 {[%emt 0:01:14]} Kxe7 {[%emt 0:00:10]} 43. Nd3 {[%emt 0:07:31]} Nxe3 {[%emt 0:02:01]} 44. Nxc5 $1 {[%emt 0:02:54]} Nxc4 {[%emt 0:05:27]} 45. Nxa6 {[%emt 0:05:11]} Nxa3 $15 {[%emt 0:00:14][%mdl 4096] Endgame KRN-KRN} 46. Rb3 {[%emt 0:00:37]} Nc4 {[%emt 0:03:22]} 47. Nb4 {[%emt 0:00:10] Strongly threatening Nc6+.} Nxa5 {[%emt 0:00:14]} 48. Re3+ {[%emt 0:04:44]} Kf7 {[%emt 0:01:29]} 49. Rh3 {[%emt 0:00:15]} Ke6 {[%emt 0:00:32]} 50. Kf2 {[%emt 0:01:29]} Rb7 {[%emt 0:01:16]} 51. Rh6+ {[%emt 0:00:31]} Ke5 {[%emt 0:00:11]} 52. Nd3+ {[%emt 0:00:09]} Kd5 {[%emt 0:00:24]} 53. Kf3 {[%emt 0:01:29]} (53. Rf6 $11 {remains equal.}) 53... Nc4 $17 {[%emt 0:00:36]} 54. Kf4 {[%emt 0:00:51] [#]} (54. Nf4+ $142 Kd4 55. Ne6+ Ke5 56. Nd8) 54... Ne5 $1 {[%emt 0:02:09]} 55. Rh3 {[%emt 0:03:15]} ({Don't blunder} 55. Nxe5 $2 dxe5+ 56. Kf3 (56. Kxf5 $2 Rf7+ 57. Kg4 e4 $19) 56... Ra7 $19) 55... Nxd3+ {[%emt 0:02:40]} ({Better is} 55... Ke6 $17 {aiming for ...Kf6.} 56. a3 Nxd3+ 57. Rxd3 Ra7 58. Re3+ Kf6) 56. Rxd3+ {[%emt 0:00:02] KR-KR. The position is equal.} Ke6 {[%emt 0:00:09]} 57. Rh3 {[%emt 0:01:00]} Rb4+ {[%emt 0:00:21]} 58. Kf3 {[%emt 0:00:13]} Rb2 {[%emt 0:01:19]} 59. Rxh7 {[%emt 0:00:31]} Rxa2 {[%emt 0:00:07]} 60. Rh8 {[%emt 0:00:40]} Ra3+ {[%emt 0:00:51]} 61. Kf4 {[%emt 0:00:06]} Ra4+ {[%emt 0:00:11]} 62. Kf3 {[%emt 0:00:07]} d5 {[%emt 0:00:56]} 63. h4 {[%emt 0:00:22]} Rg4 {[%emt 0:01:08]} 64. h5 {[%emt 0:01:17]} Kf6 {[%emt 0:00:29]} 65. h6 {[%emt 0:00:46]} Rh4 {[%emt 0:01:06]} 66. h7 {[%emt 0:00:37]} Kg7 {[%emt 0:00:31]} 67. Rd8 {[%emt 0:00:11]} Kxh7 {[%emt 0:00:10]} 68. Rxd5 {[%emt 0:00:05] Weighted Error Value: White=0.12 (very precise) /Black=0.11 (very precise)} 1/2-1/2

[Event "LV Capablanca Memorial Elite 2022"]
[Site "La Habana"]
[Date "2022.04.20"]
[Round "2.2"]
[White "Ortiz Suarez, Isan Reynaldo"]
[Black "Niemann, Hans Moke"]
[Result "0-1"]
[ECO "C77"]
[WhiteElo "2531"]
[BlackElo "2642"]
[Annotator "TA"]
[PlyCount "68"]
[EventDate "2022.04.20"]
[EventType "tourn"]
[EventCountry "CUB"]
[SourceTitle "playchess.com"]
[Source "ChessBase"]
[SourceQuality "1"]
[TimeControl "40/5400+30:1800+30"]

{[%evp 12,68,16,15,7,10,7,13,16,0,0,0,0,0,0,-8,18,29,19,20,18,0,42,0,0,0,0,0,0,0,16,16,8,0,29,16,28,0,0,0,0,0,0,-33,-40,-41,-38,-47,-31,-36,-40,-38,-15,-68,-12,-98,-97,-100,-97]} 1. e4 {[%emt 0:00:18]} e5 {[%emt 0:02:25]} 2. Nf3 {[%emt 0:00:00]} Nc6 {[%emt 0:00:24]} 3. Bb5 {[%emt 0:00:35][%cal Bf1b5,Bb5a4,Ba4b3][%mdl 32]} a6 {[%emt 0:00:46]} 4. Ba4 {[%emt 0:00:12]} Nf6 {[%emt 0:00:25]} 5. d3 {[%emt 0:00:24]} b5 {[%emt 0:00:42]} 6. Bb3 {[%emt 0:00:08]} Bc5 {[%emt 0:00:14]} 7. Nc3 {[%emt 0:01:34] 7.c3 is becoming the main line.} d6 {[%emt 0:00:47] C77: Ruy Lopez: 3...a6 4 Ba4 Nf6, unusual lines.} 8. Nd5 {[%emt 0:00:49]} h6 {[%emt 0:00:56] Inhibits Bg5.} 9. c3 {[%emt 0:00:36]} Be6 {[%emt 0:06:10] The position is equal.} 10. O-O {[%emt 0:12:57]} Bxd5 {[%emt 0:02:22]} 11. exd5 {[%emt 0:01:22]} Ne7 {[%emt 0:00:15][%cal Bc6e7,Be7c8,Bc8b6][%mdl 32]} 12. d4 {[%emt 0:00:32]} exd4 {[%emt 0:00:12]} 13. Nxd4 {[%emt 0:00:09]} O-O {[%emt 0:00:24]} (13... Qd7 {feels hotter.} 14. Qd3 O-O 15. a4 Nfxd5 16. axb5 axb5 17. Bc2 Nf6) 14. Qf3 {[%emt 0:02:35][%cal Oc1h6]} Bxd4 {[%emt 0:04:24]} 15. cxd4 {[%emt 0:00:05][%cal Oc1h6]} Nc8 {[%emt 0:09:26] [#]} 16. Bd2 $146 {[%emt 0:07:57]} ({Predecessor:} 16. a4 bxa4 17. Bxa4 Na7 18. Rd1 Nb5 19. Bxh6 Qd7 20. Bc2 Qg4 21. Qxg4 Nxg4 22. Bg5 {1-0 (45) McKay,R-Norris,A Troon 1980}) 16... a5 {[%emt 0:04:44]} 17. a3 {[%emt 0:06:49]} Nb6 {[%emt 0:03:36]} 18. Rac1 {[%emt 0:00:33]} Re8 {[%emt 0:02:42]} 19. h3 {[%emt 0:05:39]} a4 {[%emt 0:13:41]} 20. Ba2 {[%emt 0:00:16]} Re4 {[%emt 0:06:07]} 21. Rc6 {[%emt 0:18:25]} Qe7 {[%emt 0:05:09]} (21... Rxd4 $2 22. Bc3 Rh4 23. g3 $18 (23. Bxf6 Qxf6 24. Qxf6 gxf6 $14)) 22. Qd3 {[%emt 0:20:05]} Re2 {[%emt 0:07:27]} (22... Nbxd5 $5 {[%cal Ra8e8]} 23. Qxb5 Rxd4 $11) 23. Bc1 {[%emt 0:01:53]} b4 {[%emt 0:02:35]} 24. axb4 {[%emt 0:02:31][%cal Oc6c7]} (24. Rxc7 $5 Qxc7 25. Qxe2 $11) 24... Nbxd5 {[%emt 0:04:45] Pair of Knights!} 25. Qb5 {[%emt 0:04:48]} Qe4 {[%emt 0:02:33][%cal Oa4a3] Hoping for ...a3!} 26. Bb1 $1 {[%emt 0:01:29]} Qe8 $36 {[%emt 0:01:05][%mdl 2048] ...Rb8 is the strong threat. Black is pushing.} 27. Bd3 {[%emt 0:00:33] [#]} Rb8 $1 {[%emt 0:03:32]} 28. Qxa4 {[%emt 0:03:55]} Rxb4 {[%emt 0:01:14]} 29. Qa6 {[%emt 0:04:02]} Re1 {[%emt 0:01:53]} 30. Rc4 {[%emt 0:00:28]} Rb3 {[%emt 0:01:30]} 31. Rxe1 {[%emt 0:01:20]} Qxe1+ {[%emt 0:00:09]} 32. Bf1 {[%emt 0:00:02]} Rb8 {[%emt 0:04:00] 0x0.00203746de19dp-1022s more active pieces.} (32... Rd3 $1 $15 33. Qc8+ Ne8) 33. Qc6 {[%emt 0:02:04]} (33. Qa3 $11) 33... Re8 $17 {[%emt 0:02:28] [#] White must now prevent ...Re2.} 34. Rc2 {[%emt 0:03:53] Against Re2} Nb4 {[%emt 0:00:02][%csl LRc2,LRc6] Weighted Error Value: White=0.11 (very precise) /Black=0.07 (flawless)} 0-1

[Event "LV Capablanca Memorial Elite 2022"]
[Site "La Habana"]
[Date "2022.04.20"]
[Round "2.3"]
[White "Mareco, Sandro"]
[Black "Almeida Quintana, Omar"]
[Result "1-0"]
[ECO "B06"]
[WhiteElo "2643"]
[BlackElo "2535"]
[Annotator "TA"]
[PlyCount "106"]
[EventDate "2022.04.20"]
[EventType "tourn"]
[EventCountry "CUB"]
[SourceTitle "playchess.com"]
[Source "ChessBase"]
[SourceQuality "1"]
[TimeControl "40/5400+30:1800+30"]

{[%evp 9,106,31,25,24,22,25,45,38,39,36,36,48,56,52,46,35,50,30,65,0,38,55,37,19,68,55,122,93,100,112,108,106,126,124,134,94,116,66,53,53,71,69,190,181,381,379,414,353,329,341,333,318,320,320,523,520,524,512,502,505,493,435,530,420,396,304,295,294,281,286,562,544,719,674,686,730,727,714,743,703,845,832,847,760,973,947,882,725,722,708,687,688,668,623,1300,1191,975,852,29984]} 1. e4 {[%emt 0:00:05]} g6 {[%emt 0:00:23]} 2. d4 {[%emt 0:00:05]} Bg7 {[%emt 0:00:04]} 3. Nc3 {[%emt 0:00:03]} d6 {[%emt 0:00:05]} 4. Be3 {[%emt 0:00:11]} a6 {[%emt 0:00:39]} 5. h4 {[%emt 0:00:00]} h5 {[%emt 0:00:18]} 6. Nh3 {[%emt 0:00:04] B06: Modern Defence.} Bxh3 {[%emt 0:00:07]} 7. Rxh3 {[%emt 0:00:07]} Nf6 {[%emt 0:00:29] [#]} 8. e5 $146 {[%emt 0:01:58] White is slightly better.} ({Predecessor:} 8. f3 b5 9. Qd2 c6 10. O-O-O Nbd7 11. Kb1 Qa5 12. Nd5 Qxd2 13. Nxf6+ Nxf6 14. Rxd2 {1-0 (46) Sharapov,E (2380)-Petkov,M (2424) Chess.com INT 2020}) 8... Ng4 {[%emt 0:00:48]} 9. e6 {[%emt 0:06:13]} fxe6 {[%emt 0:07:42][%cal Oc7c5]} 10. Qd3 {[%emt 0:07:30]} Kd7 {[%emt 0:03:32]} 11. O-O-O {[%emt 0:00:00]} Qg8 {[%emt 0:03:43]} 12. Ne4 {[%emt 0:07:11]} (12. Qxg6 Nxf2 13. Rg3 (13. Bb5+ $2 axb5 14. Rg3 Ng4 $19) 13... Ng4 $15) 12... Nc6 {[%emt 0:02:17]} 13. Kb1 {[%emt 0:26:44]} (13. Qb3 $5 {[%cal Rb3b7]}) 13... e5 {[%emt 0:31:37]} 14. dxe5 {[%emt 0:00:00]} (14. d5 $14 Nd4 15. Bc1) 14... Bxe5 {[%emt 0:03:55]} 15. f4 {[%emt 0:08:21]} Bg7 {[%emt 0:04:32]} (15... Nb4 $2 16. Qa3 (16. Qc4 Qxc4 17. Bxc4 Nxe3 $11) 16... Nxe3 17. Rxe3 Bxf4 18. Rf3 Qxa2+ 19. Qxa2 Nxa2 20. Rxf4 $18) 16. Bg1 {[%emt 0:03:07][%mdl 1024] White has compensation.} Kc8 {[%emt 0:04:48]} (16... Nb4 17. Qb3 Qxb3 18. Rxb3 $16) (16... Rf8 $11) 17. Ng5 $14 {[%emt 0:12:17]} Nb4 {[%emt 0:14:58] [#]} (17... Bxb2 $2 18. Kxb2 e5 19. f5 gxf5 20. Qxf5+ Kb8 21. Rf3 $18) (17... Bh6 $14) 18. Qa3 $1 $16 {[%emt 0:00:00]} c5 {[%emt 0:11:30]} 19. c3 {[%emt 0:00:00]} Nc6 {[%emt 0:04:09]} 20. Qa4 {[%emt 0:00:00]} Kb8 {[%emt 0:00:00]} 21. Bd3 {[%emt 0:10:41]} Bf6 {[%emt 0:00:00]} 22. Be4 {[%emt 0:00:49]} Qe8 {[%emt 0:03:12]} 23. Ne6 {[%emt 0:07:50]} ({Better is} 23. b4 $16) 23... Qc8 $1 $14 {[%emt 0:01:26]} 24. Qb3 {[%emt 0:00:00]} Na5 {[%emt 0:00:00]} 25. Qd5 {[%emt 0:00:00] Strongly threatening b4. &Bianco is much more active.} Qc6 {[%emt 0:00:00] A mistake that costs the game.} ({Black should play} 25... Bxh4 $1 $14 26. Nxc5 (26. Rxh4 Nf6 $11) (26. Bxg6 Bf2 $11) 26... Bf2) 26. Bxg6 $18 {[%emt 0:00:00] b4 is the strong threat.} Qxd5 $2 {[%emt 0:00:00]} (26... Rh6 {keeps fighting.}) 27. Rxd5 {[%emt 0:00:00]} Nc4 {[%emt 0:00:00]} 28. Bxh5 {[%emt 0:00:00]} Nb6 {[%emt 0:01:49] [#]} 29. Rg5 {[%emt 0:00:00][%mdl 512]} Nh6 {[%emt 0:00:00]} 30. Bg6 {[%emt 0:01:33]} Kc8 {[%emt 0:00:00]} 31. g4 {[%emt 0:03:56]} Kd7 $2 {[%emt 0:02:03] [#]} (31... Rg8 32. Bh7 Rh8) 32. Nxc5+ $1 {[%emt 0:00:31][%mdl 512]} Kc6 {[%emt 0:00:17]} 33. Be4+ {[%emt 0:02:03]} d5 {[%emt 0:00:01] [#]} 34. Rxd5 {[%emt 0:00:33][%mdl 512]} Nxd5 {[%emt 0:00:06]} 35. g5 {[%emt 0:00:07]} b5 {[%emt 0:02:19]} 36. b3 {[%emt 0:00:40] Black must now prevent Rd3.} e6 {[%emt 0:01:01]} 37. c4 {[%emt 0:00:38]} (37. gxf6 Kd6 38. Rd3 Rag8 $18) 37... bxc4 {[%emt 0:00:03]} 38. bxc4 {[%emt 0:00:05][%mdl 64] Pin} (38. gxf6 Kd6 $16) (38. gxh6 cxb3 39. axb3 (39. Rxb3 Rab8 $11) (39. Nxe6 bxa2+ 40. Kxa2 Rab8 $11) 39... Kd6 $11) 38... Rab8+ {[%emt 0:00:11]} 39. Rb3 {[%emt 0:03:56] Dancing on a razor blade.} Be7 $2 {[%emt 0:00:49]} (39... Rxb3+ {was worth a try.} 40. axb3 Kd6 41. cxd5 (41. gxf6 Nxf6 42. Bd4 Rg8 $14) 41... exd5) 40. Nxe6 {[%emt 0:00:00] White is clearly winning.} ({Not} 40. gxh6 $2 Bxc5 41. Bh2 (41. cxd5+ $2 exd5 42. Bxc5 Rxb3+ 43. axb3 dxe4 $19) 41... Rxb3+ 42. axb3 {[#]} Rxh6 $1 $19) ({Inferior is} 40. cxd5+ exd5 41. Bd4 dxe4 42. Bxh8 Rxh8 43. Nxe4 Nf5 $17) 40... Nf7 {[%emt 0:00:00]} 41. Bxd5+ {[%emt 0:00:55] This bishop pair is nice.} Kd7 {[%emt 0:01:00]} 42. g6 {[%emt 0:00:15]} Nh6 {[%emt 0:01:11]} 43. g7 {[%emt 0:04:42]} Rxb3+ {[%emt 0:01:30]} 44. axb3 {[%emt 0:00:17]} Rb8 {[%emt 0:00:09]} 45. Kc2 {[%emt 0:01:46]} Bf6 {[%emt 0:01:05]} 46. Bc5 {[%emt 0:02:56]} Bxh4 {[%emt 0:01:23]} 47. Nf8+ {[%emt 0:02:17]} Ke8 {[%emt 0:00:02]} 48. Ng6 {[%emt 0:01:04]} Bf6 {[%emt 0:00:31]} 49. g8=Q+ {[%emt 0:00:07]} Nxg8 {[%emt 0:00:03]} 50. Bxg8 {[%emt 0:00:04]} Kd7 {[%emt 0:00:43]} 51. Bd5 {[%emt 0:00:11]} a5 {[%emt 0:00:14]} 52. Ne5+ {[%emt 0:01:23]} Kc7 {[%emt 0:00:07]} 53. Ng4 {[%emt 0:01:11]} Kd8 {[%emt 0:02:37] Weighted Error Value: White=0.15 (very precise) /Black=0.38} 1-0

[Event "LV Capablanca Memorial Elite 2022"]
[Site "La Habana"]
[Date "2022.04.20"]
[Round "2.4"]
[White "Durarbayli, Vasif"]
[Black "Albornoz Cabrera, Carlos Daniel"]
[Result "1-0"]
[ECO "B92"]
[WhiteElo "2615"]
[BlackElo "2567"]
[Annotator "TA"]
[PlyCount "62"]
[EventDate "2022.04.20"]
[EventType "tourn"]
[EventCountry "CUB"]
[SourceTitle "playchess.com"]
[Source "ChessBase"]
[SourceQuality "1"]
[TimeControl "40/5400+30:1800+30"]

{[%evp 16,62,5,17,10,0,18,0,16,8,19,8,12,6,19,16,31,12,22,27,39,0,24,24,32,18,54,19,43,55,37,41,28,39,62,68,73,71,118,106,125,112,110,118,109,115,108,113,102]} 1. e4 {[%emt 1:31:00]} c5 {[%emt 1:31:00]} 2. Nf3 {[%emt 0:00:30]} d6 {[%emt 0:00:30]} 3. d4 {[%emt 0:00:30]} cxd4 {[%emt 0:00:30]} 4. Nxd4 {[%emt 0:00:30]} Nf6 {[%emt 0:00:30]} 5. Nc3 {[%emt 0:00:30]} a6 {[%emt 0:00:30]} 6. Be2 {[%emt 0:00:30]} e5 {[%emt 0:00:30]} 7. Nb3 {[%emt 0:00:30]} Be7 {[%emt 0:00:30]} 8. O-O {[%emt 0:00:30]} O-O {[%emt 0:00:30]} 9. Re1 {[%emt 0:00:30]} Be6 {[%emt 0:00:30] B92: Sicilian Najdorf: 6 Be2.} 10. Bf3 {[%emt 0:00:30]} h6 {[%emt 0:00:30] [#]} 11. h3 $5 $146 {[%emt 0:00:30][%mdl 8] New and interesting.} ({Predecessor:} 11. a4 Qc7 12. h3 Nbd7 13. Nd2 Rfc8 14. Nf1 Rab8 15. Ne3 b5 16. axb5 axb5 17. Bd2 {1-0 (38) Durarbayli,V (2549)-Atabayev,Y (2431) Kazan 2013}) 11... Nh7 {[%emt 0:00:30] The position is equal.} 12. Be3 {[%emt 0:00:30]} Nd7 {[%emt 0:00:30]} 13. a4 {[%emt 0:00:30]} Rc8 {[%emt 0:00:30]} 14. a5 {[%emt 0:00:30]} Rc6 {[%emt 0:00:30]} 15. Nd2 {[%emt 0:00:30][%cal Bb3d2,Bd2f1,Bf1e3][%mdl 32]} Bg5 {[%emt 0:00:30]} 16. Nf1 {[%emt 0:00:30]} Qc7 {[%emt 0:00:30]} 17. Ra3 {[%emt 0:00:30]} Rc8 {[%emt 0:00:30]} 18. Qb1 {[%emt 0:00:30]} Bxe3 {[%emt 0:00:30]} 19. Nxe3 {[%emt 0:00:30]} Ng5 {[%emt 0:00:30]} 20. Bg4 {[%emt 0:00:30]} Nf6 {[%emt 0:00:30]} 21. Bf5 {[%emt 0:00:30]} Rc5 {[%emt 0:00:30]} 22. h4 {[%emt 0:00:30]} Ngh7 {[%emt 0:00:30]} 23. Na4 {[%emt 0:00:30]} Rc6 {[%emt 0:00:30]} 24. Nb6 {[%emt 0:00:30]} Re8 {[%emt 0:00:30]} 25. c4 {[%emt 0:00:30][%cal Bc2c4,Bc4d5][%mdl 32]} Nf8 {[%emt 0:00:30]} 26. b4 $36 {[%emt 0:00:30][%mdl 2048] White is really pushing. White is better.} Qe7 {[%emt 0:00:30]} (26... g6 $142) 27. Nbd5 $16 {[%emt 0:00:30] &Bianco is more active.} Bxd5 {[%emt 0:00:30]} 28. cxd5 {[%emt 0:00:30]} ({Don't do} 28. exd5 $6 Rc7 $14) 28... Rc7 {[%emt 0:00:30]} 29. Rc1 {[%emt 0:00:30]} g6 {[%emt 0:00:30] [#]} 30. Rac3 $1 {[%emt 0:00:30]} Rxc3 {[%emt 0:00:30]} 31. Rxc3 {[%emt 0:00:30]} Rb8 {[%emt 0:00:30] Weighted Error Value: White=0.05 (flawless) /Black=0.11 (very precise)} (31... gxf5 $2 32. Nxf5 Qd8 33. Qc1 (33. Nxh6+ Kh7 $18) 33... Nxe4 34. Nxh6+ (34. Rc7 Qf6 $16) 34... Kg7 35. Nf5+ Kg8 36. Qe3 $18) 1-0

[Event "LV Capablanca Memorial Elite 2022"]
[Site "La Habana"]
[Date "2022.04.20"]
[Round "2.5"]
[White "Ganguly, Surya Shekhar"]
[Black "Quesada Perez, Yasser"]
[Result "1-0"]
[ECO "B36"]
[WhiteElo "2627"]
[BlackElo "2568"]
[Annotator "TA"]
[PlyCount "65"]
[EventDate "2022.04.20"]
[EventType "tourn"]
[EventCountry "CUB"]
[SourceTitle "playchess.com"]
[Source "ChessBase"]
[SourceQuality "1"]
[TimeControl "40/5400+30:1800+30"]

{[%evp 18,65,42,28,43,35,41,31,39,25,39,18,17,21,33,36,35,33,32,42,41,23,24,20,17,26,37,41,45,45,60,60,60,60,60,44,87,87,301,330,323,330,300,330,330,308,316,322,308,254]} 1. e4 {[%emt 0:00:27]} c5 {[%emt 0:00:07]} 2. Nf3 {[%emt 0:00:15]} Nc6 {[%emt 0:00:22]} 3. d4 {[%emt 0:00:19]} cxd4 {[%emt 0:00:09]} 4. Nxd4 {[%emt 0:00:06]} g6 {[%emt 0:00:15]} 5. c4 {[%emt 0:01:15]} Nf6 {[%emt 0:00:29]} 6. Nc3 {[%emt 0:00:07]} Nxd4 {[%emt 0:00:12]} 7. Qxd4 {[%emt 0:00:06]} d6 {[%emt 0:00:05]} 8. Be3 {[%emt 0:02:14]} Bg7 {[%emt 0:00:09]} 9. Be2 {[%emt 0:00:41]} O-O {[%emt 0:00:07]} 10. Qd2 {[%emt 0:00:04]} a5 {[%emt 0:00:20] B36: Sicilian: Maroczy Bind: Gurgenidze System.} 11. O-O {[%emt 0:01:02]} a4 {[%emt 0:00:13]} 12. Rad1 {[%emt 0:00:10] Recently 12.Bd4 got a lot of attention.} Qa5 {[%emt 0:00:25] White is slightly better.} 13. Bd4 {[%emt 0:01:39]} Bd7 {[%emt 0:00:37]} 14. Bxf6 {[%emt 0:13:07]} Bxf6 {[%emt 0:25:43]} 15. Nd5 {[%emt 0:00:44]} Qxd2 {[%emt 0:01:01]} 16. Rxd2 {[%emt 0:00:47]} Kg7 {[%emt 0:05:15]} 17. c5 {[%emt 0:03:39] [#]} Be6 $146 {[%emt 0:19:13]} ({Predecessor:} 17... Bc6 18. Nxf6 Kxf6 19. cxd6 Bxe4 20. dxe7 Rfe8 21. Re1 Rxe7 22. Bc4 Rc8 23. Rd6+ Ke5 24. Rd5+ Kf6 25. Rd6+ Ke5 26. Rd5+ {½-½ (26) Draskovic,L (2444)-Djukic,N (2562) Niksic 2018}) 18. cxd6 {[%emt 0:01:33]} exd6 {[%emt 0:00:37]} 19. Nxf6 {[%emt 0:01:22]} Kxf6 {[%emt 0:00:08]} 20. Rxd6 {[%emt 0:00:07]} Rfd8 {[%emt 0:08:34]} 21. Rb6 {[%emt 0:02:17]} (21. Rfd1 Rxd6 22. Rxd6 Rc8 $15) 21... Kg7 {[%emt 0:00:10]} 22. Rd1 {[%emt 0:19:06]} Bxa2 {[%emt 0:03:01]} 23. Rxb7 {[%emt 0:01:00]} Bb3 {[%emt 0:01:08]} 24. Rxd8 {[%emt 0:01:11]} Rxd8 $14 {[%emt 0:00:05][%mdl 4096] Endgame KRB-KRB} 25. h4 $1 {[%emt 0:00:42]} Rd2 {[%emt 0:05:44][%csl LRb2,LRe2]} 26. Bb5 {[%emt 0:00:11]} h5 {[%emt 0:01:09]} 27. f3 {[%emt 0:05:34]} ({Don't play} 27. Ra7 Rxb2 28. e5 (28. Bxa4 Rb1+ 29. Kh2 Ra1 $17) 28... Rb1+ 29. Kh2 Ra1 $11) 27... Rxb2 $2 {[%emt 0:19:19] [#] This costs Black the game.} (27... Kf8 $16) 28. Bxa4 $1 $18 {[%emt 0:03:45][%mdl 512] White has a decisive advantage.} Rb1+ {[%emt 0:00:05]} 29. Kf2 {[%emt 0:00:13]} Ba2 {[%emt 0:00:03]} 30. Rxb1 {[%emt 0:01:07]} Bxb1 {[%emt 0:00:04]} 31. Ke3 {[%emt 0:00:40] Bb3 is the strong threat.} Ba2 {[%emt 0:02:26] Inhibits Bb3.} 32. Kd4 {[%emt 0:01:21]} Kf6 {[%emt 0:01:22]} 33. Bc2 {[%emt 0:02:15] Weighted Error Value: White=0.03 (flawless) /Black=0.25 (precise)} 1-0